[Event "Titled Tuesday Blitz June 14 Late 2022"]
[White "Chiu, Isaac"]
[Black "Bobadilla Viera, Jorge Samuel"]
[WhiteFideId "30900654"]
[BlackFideId "3906353"]
[WhiteElo "2117"]
[BlackElo "2202"]
[Result "1/2-1/2"]
[Round "08"]
[TimeControl "180+1"]
[Date "2022.06.15"]
[WhiteClock "0:00:14"]
[BlackClock "0:00:11"]

1. d4 {[%clk 0:03:00]}  Nf6 {[%clk 0:02:58]} 2. Bg5 {[%clk 0:02:57]}  d5 {[%clk 0:02:58]} 3. Bxf6 {[%clk 0:02:57]}  gxf6 {[%clk 0:02:59]} 4. g3 {[%clk 0:02:53]}  c5 {[%clk 0:02:57]} 5. dxc5 {[%clk 0:02:52]}  Nc6 {[%clk 0:02:57]} 6. Bg2 {[%clk 0:02:52]}  e6 {[%clk 0:02:56]} 7. Nf3 {[%clk 0:02:48]}  Bxc5 {[%clk 0:02:56]} 8. O-O {[%clk 0:02:48]}  O-O {[%clk 0:02:55]} 9. Nbd2 {[%clk 0:02:45]}  Qe7 {[%clk 0:02:48]} 10. e4 {[%clk 0:02:42]}  dxe4 {[%clk 0:02:43]} 11. Nxe4 {[%clk 0:02:42]}  Bb6 {[%clk 0:02:42]} 12. Qc1 {[%clk 0:02:29]}  f5 {[%clk 0:02:41]} 13. Ned2 {[%clk 0:01:48]}  Qf6 {[%clk 0:02:37]} 14. Nc4 {[%clk 0:01:47]}  Bc7 {[%clk 0:02:37]} 15. Re1 {[%clk 0:01:41]}  Rd8 {[%clk 0:02:35]} 16. Nfe5 {[%clk 0:01:29]}  Nxe5 {[%clk 0:02:34]} 17. Nxe5 {[%clk 0:01:28]}  Bxe5 {[%clk 0:02:34]} 18. Rxe5 {[%clk 0:01:27]}  Bd7 {[%clk 0:02:26]} 19. Qf4 {[%clk 0:01:25]}  Bc6 {[%clk 0:02:25]} 20. Rae1 {[%clk 0:01:18]}  Rac8 {[%clk 0:02:23]} 21. c3 {[%clk 0:01:12]}  Kg7 {[%clk 0:02:18]} 22. Bxc6 {[%clk 0:01:07]}  Rxc6 {[%clk 0:02:18]} 23. Kg2 {[%clk 0:01:07]}  Rcd6 {[%clk 0:02:17]} 24. R1e2 {[%clk 0:01:05]}  Rd3 {[%clk 0:02:14]} 25. Qb4 {[%clk 0:00:54]}  b6 {[%clk 0:02:14]} 26. Qc4 {[%clk 0:00:52]}  R3d5 {[%clk 0:02:06]} 27. Rxd5 {[%clk 0:00:51]}  Rxd5 {[%clk 0:02:06]} 28. Qc7 {[%clk 0:00:51]}  Ra5 {[%clk 0:01:59]} 29. a3 {[%clk 0:00:49]}  Qg5 {[%clk 0:01:54]} 30. Rxe6 {[%clk 0:00:45]}  f4 {[%clk 0:01:50]} 31. Re7 {[%clk 0:00:40]}  f3+ {[%clk 0:01:47]} 32. Kxf3 {[%clk 0:00:31]}  Qd5+ {[%clk 0:01:47]} 33. Ke3 {[%clk 0:00:28]}  Rb5 {[%clk 0:00:59]} 34. b4 {[%clk 0:00:23]}  Qg5+ {[%clk 0:00:42]} 35. f4 {[%clk 0:00:23]}  Qg6 {[%clk 0:00:33]} 36. c4 {[%clk 0:00:20]}  Rh5 {[%clk 0:00:29]} 37. Re8 {[%clk 0:00:16]}  Rxh2 {[%clk 0:00:12]} 38. Qe5+ {[%clk 0:00:14]}  Kh6 {[%clk 0:00:12]} 39. Qg5+ {[%clk 0:00:11]}  Qxg5 {[%clk 0:00:13]} 40. fxg5+ {[%clk 0:00:12]}  Kxg5 {[%clk 0:00:14]} 41. Re7 {[%clk 0:00:12]}  f5 {[%clk 0:00:13]} 42. Rg7+ {[%clk 0:00:12]}  Kf6 {[%clk 0:00:13]} 43. Rxa7 {[%clk 0:00:12]}  h5 {[%clk 0:00:13]} 44. Kf3 {[%clk 0:00:13]}  Ra2 {[%clk 0:00:13]} 45. Ra6 {[%clk 0:00:13]}  Kg5 {[%clk 0:00:14]} 46. Ra8 {[%clk 0:00:12]}  Rc2 {[%clk 0:00:13]} 47. Rg8+ {[%clk 0:00:12]}  Kf6 {[%clk 0:00:13]} 48. Rf8+ {[%clk 0:00:13]}  Kg5 {[%clk 0:00:13]} 49. Rg8+ {[%clk 0:00:13]}  Kf6 {[%clk 0:00:14]} 50. Rb8 {[%clk 0:00:14]}  Rxc4 {[%clk 0:00:13]} 51. Rxb6+ {[%clk 0:00:15]}  Kg5 {[%clk 0:00:13]} 52. Rb8 {[%clk 0:00:15]}  Rc3+ {[%clk 0:00:13]} 53. Kg2 {[%clk 0:00:16]}  Rxa3 {[%clk 0:00:14]} 54. Rg8+ {[%clk 0:00:16]}  Kf6 {[%clk 0:00:15]} 55. b5 {[%clk 0:00:16]}  Rb3 {[%clk 0:00:15]} 56. Rb8 {[%clk 0:00:15]}  Kg5 {[%clk 0:00:15]} 57. b6 {[%clk 0:00:15]}  Kf6 {[%clk 0:00:10]} 58. b7 {[%clk 0:00:14]}  Kg7 {[%clk 0:00:10]} 59. Kf2 {[%clk 0:00:14]}  Kh7 {[%clk 0:00:10]} 60. Rf8 {[%clk 0:00:11]}  Rxb7 {[%clk 0:00:09]} 61. Rxf5 {[%clk 0:00:12]}  Kg6 {[%clk 0:00:10]} 62. Ra5 {[%clk 0:00:12]}  Rb3 {[%clk 0:00:10]} 63. Ra6+ {[%clk 0:00:12]}  Kg5 {[%clk 0:00:10]} 64. Ra5+ {[%clk 0:00:12]}  Kg4 {[%clk 0:00:10]} 65. Ra4+ {[%clk 0:00:12]}  Kg5 {[%clk 0:00:10]} 66. Ra5+ {[%clk 0:00:13]}  Kg4 {[%clk 0:00:11]} 67. Ra4+ {[%clk 0:00:13]}  Kg5 {[%clk 0:00:11]} 68. Ra5+ {[%clk 0:00:14]} 1/2-1/2


[Site "https://www.chess.com"]

[Event "Titled Tuesday Blitz June 14 Late 2022"]
[White "Colpe, Malte"]
[Black "Mekhitarian, Krikor Sevag"]
[WhiteFideId "24623075"]
[BlackFideId "2107660"]
[WhiteElo "2328"]
[BlackElo "2611"]
[Result "0-1"]
[Round "08"]
[TimeControl "180+1"]
[Date "2022.06.14"]
[WhiteClock "0:00:44"]
[BlackClock "0:00:58"]

1. e4 {[%clk 0:03:00]}  e5 {[%clk 0:02:59]} 2. Nf3 {[%clk 0:03:00]}  Nf6 {[%clk 0:02:58]} 3. Nxe5 {[%clk 0:02:57]}  d6 {[%clk 0:02:59]} 4. Nf3 {[%clk 0:02:57]}  Nxe4 {[%clk 0:02:59]} 5. Nc3 {[%clk 0:02:58]}  Nxc3 {[%clk 0:02:59]} 6. dxc3 {[%clk 0:02:58]}  Be7 {[%clk 0:02:59]} 7. Bf4 {[%clk 0:02:59]}  O-O {[%clk 0:02:59]} 8. Qd2 {[%clk 0:02:59]}  Nd7 {[%clk 0:03:00]} 9. O-O-O {[%clk 0:02:59]}  Nc5 {[%clk 0:03:00]} 10. h4 {[%clk 0:02:57]}  a5 {[%clk 0:02:59]} 11. Kb1 {[%clk 0:02:54]}  b5 {[%clk 0:02:54]} 12. Ng5 {[%clk 0:02:42]}  b4 {[%clk 0:02:46]} 13. cxb4 {[%clk 0:02:38]}  axb4 {[%clk 0:02:46]} 14. Qxb4 {[%clk 0:02:37]}  Bf5 {[%clk 0:02:06]} 15. Bc4 {[%clk 0:02:15]}  Ra4 {[%clk 0:01:52]} 16. Qxc5 {[%clk 0:01:59]}  dxc5 {[%clk 0:01:52]} 17. Rxd8 {[%clk 0:02:00]}  Bxd8 {[%clk 0:01:52]} 18. b3 {[%clk 0:01:58]}  Rxc4 {[%clk 0:01:38]} 19. bxc4 {[%clk 0:01:57]}  Bf6 {[%clk 0:01:38]} 20. Bxc7 {[%clk 0:01:48]}  Rc8 {[%clk 0:01:28]} 21. Bf4 {[%clk 0:01:36]}  Rc6 {[%clk 0:01:25]} 22. Kc1 {[%clk 0:01:28]}  h6 {[%clk 0:00:59]} 23. Nf3 {[%clk 0:01:16]}  Ra6 {[%clk 0:00:59]} 24. Be5 {[%clk 0:00:59]}  Bxe5 {[%clk 0:00:59]} 25. Nxe5 {[%clk 0:01:00]}  Rxa2 {[%clk 0:00:59]} 26. Kd1 {[%clk 0:00:44]}  Ra1+ {[%clk 0:00:58]} 0-1


[Site "https://www.chess.com"]

[Event "Titled Tuesday Blitz June 14 Late 2022"]
[White "Estrada Nieto, Julian"]
[Black "Curtis, John"]
[WhiteFideId "5101018"]
[BlackFideId "3200256"]
[WhiteElo "2252"]
[BlackElo "2203"]
[Result "1/2-1/2"]
[Round "08"]
[TimeControl "180+1"]
[Date "2022.06.15"]
[WhiteClock "0:00:07"]
[BlackClock "0:00:08"]

1. e4 {[%clk 0:03:00]}  c5 {[%clk 0:02:59]} 2. Nf3 {[%clk 0:03:00]}  d6 {[%clk 0:02:56]} 3. d4 {[%clk 0:03:00]}  cxd4 {[%clk 0:02:52]} 4. Qxd4 {[%clk 0:03:01]}  Nc6 {[%clk 0:02:48]} 5. Bb5 {[%clk 0:03:00]}  Bd7 {[%clk 0:02:47]} 6. Bxc6 {[%clk 0:03:01]}  bxc6 {[%clk 0:02:44]} 7. c4 {[%clk 0:03:00]}  e5 {[%clk 0:02:44]} 8. Qd3 {[%clk 0:02:59]}  Qc8 {[%clk 0:02:22]} 9. O-O {[%clk 0:02:56]}  f5 {[%clk 0:02:21]} 10. Nc3 {[%clk 0:02:49]}  Nf6 {[%clk 0:02:18]} 11. c5 {[%clk 0:02:45]}  fxe4 {[%clk 0:02:15]} 12. Nxe4 {[%clk 0:02:44]}  d5 {[%clk 0:02:05]} 13. Nxf6+ {[%clk 0:02:30]}  gxf6 {[%clk 0:02:05]} 14. Qc2 {[%clk 0:02:10]}  Bf5 {[%clk 0:02:00]} 15. Qa4 {[%clk 0:02:00]}  Rg8 {[%clk 0:01:53]} 16. Re1 {[%clk 0:01:42]}  Rg4 {[%clk 0:01:40]} 17. Qd1 {[%clk 0:01:15]}  Be4 {[%clk 0:01:31]} 18. h3 {[%clk 0:01:05]}  Rg7 {[%clk 0:01:13]} 19. Bh6 {[%clk 0:00:56]}  Rg8 {[%clk 0:01:03]} 20. Nh4 {[%clk 0:00:35]}  Be7 {[%clk 0:00:18]} 21. Rxe4 {[%clk 0:00:24]}  dxe4 {[%clk 0:00:18]} 22. Qh5+ {[%clk 0:00:24]}  Kd7 {[%clk 0:00:16]} 23. Rd1+ {[%clk 0:00:22]}  Kc7 {[%clk 0:00:16]} 24. Qf7 {[%clk 0:00:21]}  Qe8 {[%clk 0:00:14]} 25. Qe6 {[%clk 0:00:17]}  Rd8 {[%clk 0:00:14]} 26. Rxd8 {[%clk 0:00:14]}  Bxd8 {[%clk 0:00:14]} 27. Qf5 {[%clk 0:00:12]}  e3 {[%clk 0:00:10]} 28. Bxe3 {[%clk 0:00:10]}  Qd7 {[%clk 0:00:08]} 29. Qe4 {[%clk 0:00:10]}  f5 {[%clk 0:00:05]} 30. Nxf5 {[%clk 0:00:10]}  Qd5 {[%clk 0:00:05]} 31. f3 {[%clk 0:00:09]}  Qxe4 {[%clk 0:00:06]} 32. fxe4 {[%clk 0:00:10]}  Bg5 {[%clk 0:00:04]} 33. Bxg5 {[%clk 0:00:09]}  Rxg5 {[%clk 0:00:05]} 34. Kf2 {[%clk 0:00:10]}  Rg8 {[%clk 0:00:04]} 35. Kf3 {[%clk 0:00:09]}  Rb8 {[%clk 0:00:05]} 36. b3 {[%clk 0:00:09]}  a5 {[%clk 0:00:06]} 37. g4 {[%clk 0:00:09]}  a4 {[%clk 0:00:06]} 38. bxa4 {[%clk 0:00:08]}  Rb4 {[%clk 0:00:06]} 39. g5 {[%clk 0:00:08]}  Rxa4 {[%clk 0:00:07]} 40. h4 {[%clk 0:00:08]}  Kd7 {[%clk 0:00:07]} 41. h5 {[%clk 0:00:08]}  Ke6 {[%clk 0:00:08]} 42. g6 {[%clk 0:00:08]}  hxg6 {[%clk 0:00:08]} 43. hxg6 {[%clk 0:00:09]}  Kf6 {[%clk 0:00:09]} 44. g7 {[%clk 0:00:10]}  Kf7 {[%clk 0:00:09]} 45. Nd6+ {[%clk 0:00:06]}  Kxg7 {[%clk 0:00:09]} 46. Kg4 {[%clk 0:00:06]}  Kg6 {[%clk 0:00:09]} 47. a3 {[%clk 0:00:03]}  Rxa3 {[%clk 0:00:08]} 48. Nc4 {[%clk 0:00:03]}  Ra4 {[%clk 0:00:08]} 49. Nxe5+ {[%clk 0:00:03]}  Kf6 {[%clk 0:00:08]} 50. Kf4 {[%clk 0:00:04]}  Ke6 {[%clk 0:00:05]} 51. Ng4 {[%clk 0:00:05]}  Rc4 {[%clk 0:00:05]} 52. Ne3 {[%clk 0:00:06]}  Rxc5 {[%clk 0:00:05]} 53. Nf5 {[%clk 0:00:07]}  Rxf5+ {[%clk 0:00:05]} 54. exf5+ {[%clk 0:00:06]}  Kf6 {[%clk 0:00:06]} 55. Ke4 {[%clk 0:00:07]}  c5 {[%clk 0:00:07]} 56. Kd5 {[%clk 0:00:07]}  c4 {[%clk 0:00:08]} 57. Kxc4 {[%clk 0:00:07]}  Kxf5 {[%clk 0:00:08]} 1/2-1/2


[Site "https://www.chess.com"]

[Event "Titled Tuesday Blitz June 14 Late 2022"]
[White "Hernandez Bermudez, Ulises Eduardo"]
[Black "Kostiukov, Alexandr"]
[WhiteFideId "3902510"]
[BlackFideId "14108100"]
[WhiteElo "2056"]
[BlackElo "2202"]
[Result "0-1"]
[Round "08"]
[TimeControl "180+1"]
[Date "2022.06.15"]
[WhiteClock "0:00:03"]
[BlackClock "0:00:03"]

1. e4 {[%clk 0:02:58]}  c5 {[%clk 0:02:59]} 2. c3 {[%clk 0:02:57]}  g6 {[%clk 0:02:59]} 3. d4 {[%clk 0:02:57]}  cxd4 {[%clk 0:03:00]} 4. cxd4 {[%clk 0:02:58]}  d5 {[%clk 0:03:01]} 5. e5 {[%clk 0:02:58]}  Nc6 {[%clk 0:03:01]} 6. Nf3 {[%clk 0:02:58]}  Bg4 {[%clk 0:03:00]} 7. Be2 {[%clk 0:02:58]}  Nh6 {[%clk 0:02:59]} 8. O-O {[%clk 0:02:53]}  Nf5 {[%clk 0:02:57]} 9. Nbd2 {[%clk 0:02:52]}  Qb6 {[%clk 0:02:52]} 10. a3 {[%clk 0:02:39]}  Bxf3 {[%clk 0:02:47]} 11. Nxf3 {[%clk 0:02:37]}  Ncxd4 {[%clk 0:02:38]} 12. Qa4+ {[%clk 0:02:36]}  Nc6 {[%clk 0:02:38]} 13. Bd2 {[%clk 0:02:28]}  Bg7 {[%clk 0:02:29]} 14. Rad1 {[%clk 0:02:20]}  O-O {[%clk 0:02:26]} 15. Bc3 {[%clk 0:02:20]}  e6 {[%clk 0:02:24]} 16. b4 {[%clk 0:02:14]}  d4 {[%clk 0:02:17]} 17. Ba1 {[%clk 0:02:10]}  Nxe5 {[%clk 0:02:16]} 18. Nxd4 {[%clk 0:02:08]}  Nxd4 {[%clk 0:02:01]} 19. Bxd4 {[%clk 0:02:07]}  Qc6 {[%clk 0:02:00]} 20. Qxc6 {[%clk 0:02:02]}  Nxc6 {[%clk 0:02:00]} 21. Bxg7 {[%clk 0:02:02]}  Kxg7 {[%clk 0:02:01]} 22. Rd7 {[%clk 0:02:02]}  Rab8 {[%clk 0:01:56]} 23. Rc1 {[%clk 0:01:59]}  Rfd8 {[%clk 0:01:52]} 24. Rcd1 {[%clk 0:01:57]}  a6 {[%clk 0:01:38]} 25. Bf1 {[%clk 0:01:49]}  Kf8 {[%clk 0:01:36]} 26. Rxd8+ {[%clk 0:01:35]}  Rxd8 {[%clk 0:01:34]} 27. Rc1 {[%clk 0:01:35]}  Rd5 {[%clk 0:01:22]} 28. g3 {[%clk 0:01:29]}  Ne5 {[%clk 0:01:07]} 29. Rc7 {[%clk 0:01:26]}  Rd7 {[%clk 0:01:06]} 30. Rc5 {[%clk 0:01:24]}  Nc6 {[%clk 0:00:59]} 31. Bxa6 {[%clk 0:01:18]}  Nxb4 {[%clk 0:00:53]} 32. Bb5 {[%clk 0:00:57]}  Rd1+ {[%clk 0:00:51]} 33. Kg2 {[%clk 0:00:57]}  Nd5 {[%clk 0:00:51]} 34. Rc8+ {[%clk 0:00:55]}  Ke7 {[%clk 0:00:50]} 35. Rb8 {[%clk 0:00:55]}  b6 {[%clk 0:00:47]} 36. Bc6 {[%clk 0:00:51]}  Rb1 {[%clk 0:00:44]} 37. a4 {[%clk 0:00:48]}  Rb4 {[%clk 0:00:43]} 38. Bb5 {[%clk 0:00:47]}  h5 {[%clk 0:00:38]} 39. Rb7+ {[%clk 0:00:47]}  Kf6 {[%clk 0:00:30]} 40. Be8 {[%clk 0:00:43]}  Ne7 {[%clk 0:00:29]} 41. Bb5 {[%clk 0:00:42]}  g5 {[%clk 0:00:25]} 42. Rxb6 {[%clk 0:00:40]}  Rb2 {[%clk 0:00:23]} 43. Rb7 {[%clk 0:00:35]}  g4 {[%clk 0:00:19]} 44. a5 {[%clk 0:00:32]}  Nf5 {[%clk 0:00:16]} 45. Kf1 {[%clk 0:00:23]}  Nd6 {[%clk 0:00:13]} 46. a6 {[%clk 0:00:20]}  Rxb5 {[%clk 0:00:09]} 47. Rd7 {[%clk 0:00:11]}  Ke5 {[%clk 0:00:08]} 48. a7 {[%clk 0:00:10]}  Ra5 {[%clk 0:00:09]} 49. Ke2 {[%clk 0:00:10]}  f5 {[%clk 0:00:08]} 50. f4+ {[%clk 0:00:10]}  gxf3+ {[%clk 0:00:08]} 51. Kxf3 {[%clk 0:00:10]}  Nb5 {[%clk 0:00:07]} 52. Rh7 {[%clk 0:00:09]}  Nxa7 {[%clk 0:00:06]} 53. Rxh5 {[%clk 0:00:10]}  Nc6 {[%clk 0:00:06]} 54. g4 {[%clk 0:00:09]}  Ra3+ {[%clk 0:00:06]} 55. Kg2 {[%clk 0:00:09]}  Nd4 {[%clk 0:00:04]} 56. gxf5 {[%clk 0:00:09]}  exf5 {[%clk 0:00:04]} 57. Rh8 {[%clk 0:00:10]}  Ra2+ {[%clk 0:00:04]} 58. Kh3 {[%clk 0:00:10]}  Kf4 {[%clk 0:00:04]} 59. Rh4+ {[%clk 0:00:09]}  Ke5 {[%clk 0:00:04]} 60. Rh8 {[%clk 0:00:09]}  Nf3 {[%clk 0:00:04]} 61. Kg3 {[%clk 0:00:09]}  Ng5 {[%clk 0:00:03]} 62. Re8+ {[%clk 0:00:08]}  Ne6 {[%clk 0:00:03]} 63. h4 {[%clk 0:00:09]}  Ra3+ {[%clk 0:00:04]} 64. Kg2 {[%clk 0:00:09]}  Kf6 {[%clk 0:00:05]} 65. h5 {[%clk 0:00:09]}  Nf4+ {[%clk 0:00:05]} 66. Kf2 {[%clk 0:00:08]}  Nxh5 {[%clk 0:00:06]} 67. Rf8+ {[%clk 0:00:08]}  Kg5 {[%clk 0:00:06]} 68. Rg8+ {[%clk 0:00:08]}  Kf4 {[%clk 0:00:07]} 69. Rc8 {[%clk 0:00:08]}  Nf6 {[%clk 0:00:07]} 70. Ke1 {[%clk 0:00:09]}  Ne4 {[%clk 0:00:07]} 71. Rc2 {[%clk 0:00:08]}  Re3+ {[%clk 0:00:07]} 72. Kf1 {[%clk 0:00:08]}  Kf3 {[%clk 0:00:07]} 73. Rc1 {[%clk 0:00:06]}  Ng3+ {[%clk 0:00:06]} 74. Kg1 {[%clk 0:00:06]}  f4 {[%clk 0:00:07]} 75. Ra1 {[%clk 0:00:04]}  Kg4 {[%clk 0:00:07]} 76. Rc1 {[%clk 0:00:04]}  Kh3 {[%clk 0:00:07]} 77. Rd1 {[%clk 0:00:04]}  Re2 {[%clk 0:00:07]} 78. Rd2 {[%clk 0:00:03]}  Re3 {[%clk 0:00:04]} 79. Kf2 {[%clk 0:00:03]}  Ra3 {[%clk 0:00:03]} 80. Rd8 {[%clk 0:00:02]}  Ne4+ {[%clk 0:00:03]} 81. Kf1 {[%clk 0:00:02]}  Ra2 {[%clk 0:00:02]} 82. Rh8+ {[%clk 0:00:01]}  Kg3 {[%clk 0:00:03]} 83. Rg8+ {[%clk 0:00:02]}  Kf3 {[%clk 0:00:03]} 84. Rh8 {[%clk 0:00:03]}  Ra1# {[%clk 0:00:03]} 0-1


[Site "https://www.chess.com"]

[Event "Titled Tuesday Blitz June 14 Late 2022"]
[White "Hoffmann, Asa"]
[Black "Przybylski, Wojciech"]
[WhiteFideId "2001470"]
[BlackFideId "1117599"]
[WhiteElo "2117"]
[BlackElo "2133"]
[Result "1-0"]
[Round "08"]
[TimeControl "180+1"]
[Date "2022.06.14"]
[WhiteClock "0:00:17"]
[BlackClock "0:00:01"]

1. d4 {[%clk 0:02:57]}  Nf6 {[%clk 0:02:56]} 2. Bg5 {[%clk 0:02:56]}  e6 {[%clk 0:02:55]} 3. Nd2 {[%clk 0:02:55]}  h6 {[%clk 0:02:55]} 4. Bh4 {[%clk 0:02:55]}  d5 {[%clk 0:02:53]} 5. e3 {[%clk 0:02:54]}  Be7 {[%clk 0:02:52]} 6. f4 {[%clk 0:02:53]}  Nbd7 {[%clk 0:02:50]} 7. Bd3 {[%clk 0:02:53]}  c5 {[%clk 0:02:49]} 8. c3 {[%clk 0:02:53]}  Qb6 {[%clk 0:02:36]} 9. Rb1 {[%clk 0:02:52]}  cxd4 {[%clk 0:02:30]} 10. exd4 {[%clk 0:02:51]}  Bd6 {[%clk 0:02:25]} 11. Qf3 {[%clk 0:02:47]}  Qc7 {[%clk 0:02:21]} 12. Ne2 {[%clk 0:02:46]}  b6 {[%clk 0:02:11]} 13. h3 {[%clk 0:02:41]}  Bb7 {[%clk 0:02:10]} 14. Qe3 {[%clk 0:02:37]}  O-O-O {[%clk 0:01:48]} 15. Nf3 {[%clk 0:02:37]}  Rde8 {[%clk 0:01:41]} 16. Ne5 {[%clk 0:02:36]}  Rhf8 {[%clk 0:01:36]} 17. O-O {[%clk 0:02:34]}  Ne4 {[%clk 0:01:34]} 18. c4 {[%clk 0:02:25]}  Nxe5 {[%clk 0:01:15]} 19. fxe5 {[%clk 0:02:20]}  Be7 {[%clk 0:01:12]} 20. cxd5 {[%clk 0:02:11]}  Bxh4 {[%clk 0:01:05]} 21. Rbc1 {[%clk 0:02:05]}  Nc5 {[%clk 0:00:40]} 22. dxc5 {[%clk 0:02:01]}  Bg5 {[%clk 0:00:39]} 23. Nf4 {[%clk 0:01:41]}  Kb8 {[%clk 0:00:29]} 24. cxb6 {[%clk 0:01:25]}  Qxb6 {[%clk 0:00:28]} 25. Qxb6 {[%clk 0:01:24]}  axb6 {[%clk 0:00:28]} 26. d6 {[%clk 0:01:24]}  f6 {[%clk 0:00:25]} 27. d7 {[%clk 0:01:18]}  Rd8 {[%clk 0:00:23]} 28. Nxe6 {[%clk 0:01:18]}  Be3+ {[%clk 0:00:21]} 29. Kh1 {[%clk 0:01:17]}  Bxc1 {[%clk 0:00:19]} 30. Rxc1 {[%clk 0:01:14]}  Rxd7 {[%clk 0:00:08]} 31. Nxf8 {[%clk 0:01:13]}  Rxd3 {[%clk 0:00:08]} 32. e6 {[%clk 0:01:00]}  Re3 {[%clk 0:00:08]} 33. Kg1 {[%clk 0:00:51]}  Bd5 {[%clk 0:00:06]} 34. Kf2 {[%clk 0:00:50]}  Re4 {[%clk 0:00:05]} 35. Re1 {[%clk 0:00:47]}  Rxe1 {[%clk 0:00:04]} 36. Kxe1 {[%clk 0:00:46]}  Kc7 {[%clk 0:00:05]} 37. a4 {[%clk 0:00:27]}  Kd6 {[%clk 0:00:04]} 38. b4 {[%clk 0:00:26]}  Bc6 {[%clk 0:00:02]} 39. a5 {[%clk 0:00:25]}  bxa5 {[%clk 0:00:02]} 40. bxa5 {[%clk 0:00:25]}  Bb5 {[%clk 0:00:01]} 41. Kd2 {[%clk 0:00:24]}  Ke7 {[%clk 0:00:02]} 42. Nd7 {[%clk 0:00:22]}  Kxe6 {[%clk 0:00:01]} 43. Nc5+ {[%clk 0:00:21]}  Kd5 {[%clk 0:00:01]} 44. Nd3 {[%clk 0:00:18]}  Kd4 {[%clk 0:00:01]} 45. Nf4 {[%clk 0:00:18]}  Ke5 {[%clk 0:00:01]} 46. g3 {[%clk 0:00:17]} 1-0


[Site "https://www.chess.com"]

[Event "Titled Tuesday Blitz June 14 Late 2022"]
[White "Ibarra Jerez, Jose Carlos"]
[Black "Kosteniuk, Alexandra"]
[WhiteFideId "2226332"]
[BlackFideId "4128125"]
[WhiteElo "2628"]
[BlackElo "2469"]
[Result "1-0"]
[Round "08"]
[TimeControl "180+1"]
[Date "2022.06.14"]
[WhiteClock "0:00:19"]
[BlackClock "0:00:03"]

1. Nf3 {[%clk 0:03:00]}  Nf6 {[%clk 0:02:59]} 2. g3 {[%clk 0:03:01]}  b6 {[%clk 0:02:59]} 3. Bg2 {[%clk 0:03:01]}  Bb7 {[%clk 0:03:00]} 4. O-O {[%clk 0:03:00]}  e6 {[%clk 0:03:01]} 5. c4 {[%clk 0:03:00]}  Be7 {[%clk 0:03:01]} 6. b3 {[%clk 0:03:00]}  O-O {[%clk 0:03:01]} 7. Bb2 {[%clk 0:03:01]}  d5 {[%clk 0:03:01]} 8. Nc3 {[%clk 0:02:56]}  c5 {[%clk 0:02:58]} 9. e3 {[%clk 0:02:55]}  dxc4 {[%clk 0:02:52]} 10. bxc4 {[%clk 0:02:54]}  Nbd7 {[%clk 0:02:52]} 11. Qe2 {[%clk 0:02:54]}  Rc8 {[%clk 0:02:51]} 12. Rab1 {[%clk 0:02:54]}  Qc7 {[%clk 0:02:49]} 13. d3 {[%clk 0:02:54]}  Rfd8 {[%clk 0:02:46]} 14. Rfd1 {[%clk 0:02:54]}  Qb8 {[%clk 0:02:45]} 15. Ba1 {[%clk 0:02:54]}  Qa8 {[%clk 0:02:43]} 16. Ne1 {[%clk 0:02:52]}  Bxg2 {[%clk 0:02:40]} 17. Nxg2 {[%clk 0:02:53]}  Ne5 {[%clk 0:02:35]} 18. Ne1 {[%clk 0:02:40]}  Nc6 {[%clk 0:02:09]} 19. f4 {[%clk 0:02:35]}  Rd7 {[%clk 0:02:09]} 20. Nf3 {[%clk 0:02:33]}  Rcd8 {[%clk 0:02:07]} 21. h3 {[%clk 0:02:30]}  Bf8 {[%clk 0:02:01]} 22. g4 {[%clk 0:02:29]}  Ne8 {[%clk 0:01:39]} 23. g5 {[%clk 0:02:23]}  Nd6 {[%clk 0:01:40]} 24. Nh2 {[%clk 0:02:15]}  Nf5 {[%clk 0:01:38]} 25. a3 {[%clk 0:02:04]}  Nce7 {[%clk 0:01:28]} 26. Ne4 {[%clk 0:01:53]}  Ng6 {[%clk 0:01:24]} 27. Ng4 {[%clk 0:01:45]}  Be7 {[%clk 0:01:18]} 28. Bc3 {[%clk 0:01:30]}  Qc6 {[%clk 0:01:17]} 29. Kf2 {[%clk 0:01:23]}  a6 {[%clk 0:01:11]} 30. a4 {[%clk 0:01:12]}  Rb7 {[%clk 0:00:44]} 31. Qa2 {[%clk 0:01:03]}  Rbd7 {[%clk 0:00:42]} 32. Qc2 {[%clk 0:01:04]}  Rb7 {[%clk 0:00:39]} 33. Rd2 {[%clk 0:01:01]}  Kf8 {[%clk 0:00:26]} 34. Qb3 {[%clk 0:00:56]}  Rdb8 {[%clk 0:00:25]} 35. Be5 {[%clk 0:00:50]}  Rd8 {[%clk 0:00:24]} 36. Qc2 {[%clk 0:00:46]}  Rdd7 {[%clk 0:00:22]} 37. Rb2 {[%clk 0:00:43]}  Rd8 {[%clk 0:00:22]} 38. Ra2 {[%clk 0:00:38]}  Rbd7 {[%clk 0:00:14]} 39. Qc3 {[%clk 0:00:36]}  Kg8 {[%clk 0:00:11]} 40. Ra1 {[%clk 0:00:32]}  Rb7 {[%clk 0:00:11]} 41. Rh1 {[%clk 0:00:31]}  b5 {[%clk 0:00:11]} 42. axb5 {[%clk 0:00:31]}  axb5 {[%clk 0:00:11]} 43. cxb5 {[%clk 0:00:30]}  Rxb5 {[%clk 0:00:10]} 44. h4 {[%clk 0:00:30]}  c4 {[%clk 0:00:09]} 45. h5 {[%clk 0:00:28]}  Nxe5 {[%clk 0:00:03]} 46. Nxe5 {[%clk 0:00:27]}  Rxe5 {[%clk 0:00:04]} 47. fxe5 {[%clk 0:00:24]}  Rd5 {[%clk 0:00:03]} 48. Qxc4 {[%clk 0:00:23]}  Qd7 {[%clk 0:00:03]} 49. d4 {[%clk 0:00:23]}  Ra5 {[%clk 0:00:02]} 50. Rc1 {[%clk 0:00:23]}  Bf8 {[%clk 0:00:03]} 51. Qc6 {[%clk 0:00:22]}  Qa7 {[%clk 0:00:03]} 52. Qe8 {[%clk 0:00:19]} 1-0


[Site "https://www.chess.com"]

[Event "Titled Tuesday Blitz June 14 Late 2022"]
[White "Injac, Teodora"]
[Black "Bayo Milagro, Alvaro"]
[WhiteFideId "932400"]
[BlackFideId "22275240"]
[WhiteElo "2278"]
[BlackElo "2270"]
[Result "1/2-1/2"]
[Round "08"]
[TimeControl "180+1"]
[Date "2022.06.14"]
[WhiteClock "0:00:15"]
[BlackClock "0:00:14"]

1. Nf3 {[%clk 0:03:00]}  Nf6 {[%clk 0:02:59]} 2. c4 {[%clk 0:03:00]}  g6 {[%clk 0:02:59]} 3. Nc3 {[%clk 0:02:57]}  Bg7 {[%clk 0:03:00]} 4. e4 {[%clk 0:02:55]}  d6 {[%clk 0:03:00]} 5. d4 {[%clk 0:02:55]}  O-O {[%clk 0:02:56]} 6. Be2 {[%clk 0:02:55]}  Bg4 {[%clk 0:02:57]} 7. Be3 {[%clk 0:02:54]}  Nfd7 {[%clk 0:02:57]} 8. h3 {[%clk 0:02:46]}  Bxf3 {[%clk 0:02:57]} 9. Bxf3 {[%clk 0:02:47]}  c5 {[%clk 0:02:50]} 10. d5 {[%clk 0:02:45]}  Na6 {[%clk 0:02:49]} 11. O-O {[%clk 0:02:37]}  Nc7 {[%clk 0:02:48]} 12. a4 {[%clk 0:02:36]}  Re8 {[%clk 0:02:44]} 13. Be2 {[%clk 0:02:33]}  e6 {[%clk 0:02:44]} 14. dxe6 {[%clk 0:01:58]}  Nxe6 {[%clk 0:02:44]} 15. Nb5 {[%clk 0:01:57]}  Nd4 {[%clk 0:01:41]} 16. Nxd4 {[%clk 0:01:42]}  cxd4 {[%clk 0:01:41]} 17. Bxd4 {[%clk 0:01:43]}  Bxd4 {[%clk 0:01:35]} 18. Qxd4 {[%clk 0:01:43]}  Nc5 {[%clk 0:01:36]} 19. Rad1 {[%clk 0:01:12]}  Rxe4 {[%clk 0:01:35]} 20. Qd2 {[%clk 0:01:12]}  Qe7 {[%clk 0:00:56]} 21. Bf3 {[%clk 0:01:12]}  Rxc4 {[%clk 0:00:54]} 22. Rfe1 {[%clk 0:01:03]}  Qf6 {[%clk 0:00:47]} 23. b4 {[%clk 0:00:55]}  Nxa4 {[%clk 0:00:44]} 24. Qxd6 {[%clk 0:00:22]}  Qxd6 {[%clk 0:00:40]} 25. Rxd6 {[%clk 0:00:23]}  Rxb4 {[%clk 0:00:31]} 26. Re7 {[%clk 0:00:23]}  Rf4 {[%clk 0:00:21]} 27. Bxb7 {[%clk 0:00:21]}  Rb8 {[%clk 0:00:20]} 28. Bd5 {[%clk 0:00:20]}  Nc5 {[%clk 0:00:19]} 29. Rxa7 {[%clk 0:00:17]}  Rb1+ {[%clk 0:00:19]} 30. Kh2 {[%clk 0:00:17]}  Rxf2 {[%clk 0:00:19]} 31. Rd8+ {[%clk 0:00:16]}  Kg7 {[%clk 0:00:19]} 32. Rc7 {[%clk 0:00:16]}  Na6 {[%clk 0:00:13]} 33. Re7 {[%clk 0:00:15]}  Nc5 {[%clk 0:00:13]} 34. Rc7 {[%clk 0:00:14]}  Na6 {[%clk 0:00:13]} 35. Re7 {[%clk 0:00:15]}  Nc5 {[%clk 0:00:14]} 36. Rc7 {[%clk 0:00:15]} 1/2-1/2


[Site "https://www.chess.com"]